bitfinex/quotes_BTCUSD_20250812
["timestamp","ask_amount","ask_price","bid_price","bid_amount"]
[1755027550119,0.19069944,119940.0,119930.0,0.7064702]
[1755027550344,0.19069944,119940.0,119930.0,0.87323414]
[1755027552146,0.19069944,119940.0,119930.0,0.29987526]
[1755027552362,0.19069944,119940.0,119930.0,0.87323414]
[1755027553023,0.19069944,119940.0,119930.0,0.29987526]
[1755027553230,0.21070974,119940.0,119930.0,0.87323414]
[1755027553545,0.21070974,119940.0,119930.0,0.7064702]
[1755027553762,0.19069944,119940.0,119930.0,0.7064702]
[1755027554724,0.19069944,119940.0,119930.0,0.13311132]
[1755027554930,0.19069944,119940.0,119930.0,0.7064702]
[1755027558441,0.19069944,119940.0,119930.0,0.13311132]
[1755027558619,0.19069944,119940.0,119930.0,0.7064702]
[1755027559750,0.27318387,119940.0,119930.0,0.7064702]
[1755027560510,0.84891157,119940.0,119930.0,0.12988132]
[1755027560724,1.55302045,119940.0,119930.0,8.132e-05]
[1755027560914,0.97966157,119940.0,119930.0,8.132e-05]
[1755027561186,1.00469157,119940.0,119930.0,8.132e-05]
[1755027566943,1.57805045,119940.0,119930.0,8.132e-05]
[1755027567162,1.66053488,119940.0,119930.0,8.132e-05]
[1755027568001,1.65753488,119940.0,119930.0,8.132e-05]
[1755027568432,1.71104488,119940.0,119930.0,8.132e-05]
[1755027568888,1.07432894,119940.0,119930.0,8.132e-05]
[1755027569330,1.07432894,119940.0,119930.0,1e-08]
[1755027569331,1.09932894,119940.0,119930.0,1e-08]
[1755027570008,1.09732894,119940.0,119930.0,1e-08]
[1755027570240,1.09932894,119940.0,119930.0,1e-08]
[1755027570484,1.09632894,119940.0,119930.0,1e-08]
[1755027570706,1.09532894,119940.0,119930.0,1e-08]
[1755027571122,1.09832894,119940.0,119930.0,1e-08]
[1755027571342,1.10032894,119940.0,119930.0,1e-08]
[1755027572989,1.61033076,119940.0,119930.0,1e-08]
[1755027573204,0.59032712,119940.0,119930.0,1e-08]
[1755027573406,1.61033076,119940.0,119930.0,1e-08]
[1755027573628,0.18425469,119900.0,119890.0,0.1]
[1755027573851,0.86826203,119900.0,119890.0,0.1]
[1755027574079,0.33737506,119900.0,119890.0,0.1]
[1755027574286,0.84737688,119900.0,119890.0,0.1]
[1755027574502,0.87241688,119900.0,119890.0,0.1]
[1755027574704,0.88063803,119900.0,119890.0,0.1]
[1755027574916,0.88163803,119900.0,119890.0,0.1]
[1755027575140,0.88163803,119900.0,119890.0,0.10004873]
[1755027575571,0.88472803,119900.0,119890.0,0.10004873]
[1755027577848,0.9094161,119900.0,119890.0,0.10004873]
[1755027578065,0.99213935,119900.0,119890.0,0.10004873]
[1755027578278,0.48213753,119900.0,119890.0,0.10004873]
[1755027578438,0.98904935,119900.0,119890.0,0.10004873]
[1755027579047,0.99213935,119900.0,119890.0,0.10004873]
[1755027579879,0.98904935,119900.0,119890.0,0.10004873]
[1755027580086,0.47904753,119900.0,119890.0,0.10004873]
[1755027580289,0.98904935,119900.0,119890.0,0.10004873]
[1755027583558,0.47904753,119900.0,119890.0,0.10004873]
[1755027583771,0.98904935,119900.0,119890.0,0.10004873]
[1755027584716,0.47904753,119900.0,119890.0,0.10004873]
[1755027584930,0.98904935,119900.0,119890.0,0.10004873]
[1755027585496,0.98896935,119900.0,119890.0,0.10521873]
[1755027586084,0.98896935,119900.0,119890.0,0.10206873]
[1755027586379,0.98896935,119900.0,119890.0,0.10004873]
[1755027587378,0.34859753,119900.0,119890.0,0.10521873]
[1755027587624,0.32592716,119900.0,119890.0,0.10521873]
[1755027588266,0.30123909,119900.0,119890.0,0.10521873]
[1755027591399,0.81124091,119900.0,119890.0,0.10521873]
[1755027592305,0.81248091,119900.0,119890.0,0.10521873]
[1755027592510,0.94124091,119900.0,119890.0,0.10021873]
[1755027592714,1.02372534,119900.0,119890.0,0.10021873]
[1755027593151,1.02248534,119900.0,119890.0,0.10021873]
[1755027593801,1.02372534,119900.0,119890.0,0.10021873]
[1755027595138,1.02372534,119900.0,119890.0,0.09706873]
[1755027595359,1.02372534,119900.0,119890.0,0.09504873]
[1755027597862,1.05227905,119900.0,119890.0,0.09504873]
[1755027601250,0.16686133,119860.0,119850.0,0.00322]
[1755027601463,0.16686133,119860.0,119850.0,0.00535876]
[1755027601464,0.43075063,119860.0,119850.0,0.00535876]
[1755027601849,0.94075245,119860.0,119850.0,0.00535876]
[1755027602297,0.94271245,119860.0,119850.0,0.00213876]
[1755027602714,0.94271245,119860.0,119850.0,0.00635876]
[1755027602873,0.96580045,119860.0,119850.0,0.00635876]
[1755027603371,0.9741717,119860.0,119850.0,0.00635876]
[1755027605630,0.9761117,119860.0,119850.0,0.00313876]
[1755027605835,0.9761117,119860.0,119850.0,0.00104876]
[1755027606458,0.9763317,119860.0,119850.0,0.00104876]
[1755027608303,1.07479009,119860.0,119850.0,0.00104876]
[1755027609863,1.07479009,119860.0,119850.0,0.00204876]
[1755027610877,1.07479009,119860.0,119850.0,0.00104876]
[1755027611339,1.07479009,119860.0,119850.0,4.876e-05]
[1755027611754,1.07579009,119860.0,119850.0,4.876e-05]
[1755027612192,1.07557009,119860.0,119850.0,4.876e-05]
[1755027612402,1.07463009,119860.0,119850.0,0.00535876]
[1755027612589,1.07659009,119860.0,119850.0,0.00213876]
[1755027612822,1.07659009,119860.0,119850.0,4.876e-05]
[1755027613701,1.07659009,119860.0,119850.0,0.00213876]
[1755027614118,1.07463009,119860.0,119850.0,0.00535876]
[1755027614356,1.07463009,119860.0,119850.0,0.00485876]
[1755027614793,1.07659009,119860.0,119850.0,0.00163876]
[1755027615000,0.56658827,119860.0,119850.0,0.00163876]
[1755027615179,1.07659009,119860.0,119850.0,0.00163876]
[1755027616497,0.18432428,119850.0,119840.0,0.00322]
[1755027616711,0.98809378,119850.0,119840.0,0.00531]
[1755027617146,0.16688918,119840.0,119830.0,0.1319]
[1755027617357,0.24961243,119840.0,119830.0,0.13399]
[1755027618862,0.24961243,119840.0,119830.0,0.13499]
[1755027619084,0.24961243,119840.0,119830.0,0.13599]
[1755027619284,0.30659054,119840.0,119830.0,0.30289311]
[1755027619962,0.30659054,119840.0,119830.0,0.13599]
[1755027620169,0.30659054,119840.0,119830.0,0.30289311]
[1755027621459,0.30659054,119840.0,119830.0,0.13599]
[1755027623590,0.30659054,119840.0,119830.0,0.30289311]
[1755027624663,0.30659054,119840.0,119830.0,0.13599]
[1755027627572,0.83907138,119840.0,119830.0,0.002]
[1755027627936,0.86412338,119840.0,119830.0,0.002]
[1755027628149,0.86412338,119840.0,119830.0,0.001]
[1755027629435,1.39212422,119840.0,119830.0,0.001]
[1755027629849,0.16691704,119820.0,119810.0,0.0004]
[1755027630048,0.28682846,119820.0,119810.0,0.00242]
[1755027630253,0.28476846,119820.0,119810.0,0.0054]
[1755027631170,0.28476846,119820.0,119810.0,0.00688764]
[1755027631657,0.28476846,119820.0,119810.0,0.00788764]
[1755027636735,0.28476846,119820.0,119810.0,0.13636764]
[1755027640597,0.28682846,119820.0,119810.0,0.13636764]
[1755027641043,0.20204521,119820.0,119810.0,0.13636764]
[1755027641294,0.25726374,119840.0,119810.0,0.81538706]
[1755027641522,0.16690468,119830.0,119820.0,0.16691704]
[1755027641742,0.33998699,119840.0,119830.0,0.16690311]
[1755027641953,0.33238401,119840.0,119830.0,0.17190311]
[1755027642773,0.2678859,119840.0,119830.0,0.17190311]
[1755027643400,0.2688859,119840.0,119830.0,0.17190311]
[1755027643612,0.2688859,119840.0,119830.0,0.005]
[1755027644041,0.2678859,119840.0,119830.0,0.005]
[1755027644260,0.2688859,119840.0,119830.0,0.005]
[1755027644463,0.34437499,119840.0,119830.0,0.005]
[1755027645533,0.34643499,119840.0,119830.0,0.005]
[1755027645730,0.34543499,119840.0,119830.0,0.005]
[1755027647150,0.34543499,119840.0,119830.0,0.00202]
[1755027652951,0.34543499,119840.0,119830.0,0.005]
[1755027653116,0.34543499,119840.0,119830.0,0.01332147]
[1755027653454,0.18516265,119840.0,119830.0,0.51500182]
[1755027653668,0.18516265,119840.0,119830.0,0.005]
[1755027656455,0.18722265,119840.0,119830.0,0.005]
[1755027659107,0.18722265,119840.0,119830.0,0.00202]
[1755027659711,0.18435213,119830.0,119820.0,0.30667718]
[1755027659952,0.21976471,119830.0,119820.0,0.30865718]
[1755027660940,0.21976471,119830.0,119820.0,0.818659]
[1755027661154,0.21976471,119830.0,119820.0,0.30865718]
[1755027661551,0.21976471,119830.0,119820.0,0.30965718]
[1755027662252,0.21976471,119830.0,119820.0,0.31065718]
[1755027663058,0.21976471,119830.0,119820.0,0.820659]
[1755027663667,0.21976471,119830.0,119820.0,0.31065718]
[1755027663892,0.21976471,119830.0,119820.0,0.14374014]
[1755027664292,0.22163471,119830.0,119820.0,0.14374014]
[1755027664728,0.22163471,119830.0,119820.0,0.31065718]
[1755027665273,0.22163471,119830.0,119820.0,0.14374014]
[1755027666114,0.22163471,119830.0,119820.0,0.13532]
[1755027666340,0.22163471,119830.0,119820.0,0.13036]
[1755027666822,0.81732978,119830.0,119820.0,0.002]
[1755027667917,0.81732978,119830.0,119820.0,0.001]
[1755027668506,0.16691704,119820.0,119810.0,0.00088764]
[1755027668718,0.97267654,119820.0,119810.0,0.00088764]
[1755027668929,0.97566654,119820.0,119810.0,0.00088764]
[1755027670351,0.97566654,119820.0,119810.0,0.00188764]
[1755027670772,0.97566654,119820.0,119810.0,0.00288764]
[1755027671525,0.49071872,119820.0,119810.0,0.00288764]
[1755027672297,0.35916872,119820.0,119810.0,0.00288764]
[1755027673112,0.35916872,119820.0,119810.0,0.00486764]
[1755027673323,0.33411472,119820.0,119810.0,0.00486764]
[1755027674403,0.33411472,119820.0,119810.0,0.00288764]
[1755027674741,0.33710472,119820.0,119810.0,0.00288764]
[1755027675886,0.84710654,119820.0,119810.0,0.00288764]
[1755027676074,0.87216154,119820.0,119810.0,0.00288764]
[1755027676274,0.36215972,119820.0,119810.0,0.00288764]
[1755027677548,0.87216154,119820.0,119810.0,0.00288764]
[1755027682905,0.36215972,119820.0,119810.0,0.00288764]
[1755027685447,0.87216154,119820.0,119810.0,0.00288764]
[1755027687508,0.86968154,119820.0,119810.0,0.00288764]
[1755027688183,1.01541056,119820.0,119810.0,0.00288764]
[1755027689068,0.50540874,119820.0,119810.0,0.00288764]
[1755027689327,1.01541056,119820.0,119810.0,0.00188764]
[1755027690622,1.01541056,119820.0,119810.0,0.00088764]
[1755027697398,0.50540874,119820.0,119810.0,0.00088764]
[1755027697607,1.01541056,119820.0,119810.0,0.00088764]
[1755027698172,0.50540874,119820.0,119810.0,0.00088764]
[1755027698361,1.01541056,119820.0,119810.0,0.00088764]
[1755027699867,1.01242056,119820.0,119810.0,0.00088764]
[1755027700738,1.01539056,119820.0,119810.0,0.00088764]
[1755027707992,0.50538874,119820.0,119810.0,0.00088764]
[1755027708193,1.01539056,119820.0,119810.0,0.00088764]
[1755027714022,1.01242056,119820.0,119810.0,0.00088764]
[1755027715287,1.01539056,119820.0,119810.0,0.00088764]
[1755027716822,1.65476808,119820.0,119810.0,0.00088764]
[1755027719169,0.50538874,119820.0,119810.0,0.00088764]
[1755027719378,1.65476808,119820.0,119810.0,0.00088764]
[1755027720606,1.65179808,119820.0,119810.0,0.00088764]
[1755027720790,1.65179808,119820.0,119810.0,0.00060374]
[1755027722067,0.50241874,119820.0,119810.0,0.00060374]
[1755027722277,1.65179808,119820.0,119810.0,0.00060374]
[1755027722485,0.50241874,119820.0,119810.0,0.00060374]
[1755027722689,1.65179808,119820.0,119810.0,0.00060374]
[1755027723641,1.65492808,119820.0,119810.0,0.00060374]
[1755027735449,1.65179808,119820.0,119810.0,0.00060374]
[1755027736855,1.65492808,119820.0,119810.0,0.00060374]
[1755027744928,0.50554874,119820.0,119810.0,0.00060374]
[1755027745236,1.65492808,119820.0,119810.0,0.00060374]
[1755027746008,1.67992808,119820.0,119810.0,0.00060374]
[1755027747023,1.68092808,119820.0,119810.0,0.00060374]
[1755027747441,0.18437999,119810.0,119800.0,0.0004]
[1755027747652,1.05766734,119810.0,119800.0,0.0004]
[1755027748889,1.08272734,119810.0,119800.0,0.0004]
[1755027752888,1.10772734,119810.0,119800.0,0.0004]
[1755027753363,1.10972734,119810.0,119800.0,0.0004]
[1755027754339,1.68441701,119810.0,119800.0,1e-08]
[1755027755227,1.35877326,119800.0,119790.0,1e-08]
[1755027755441,1.65166094,119800.0,119790.0,1e-08]
[1755027755619,0.5052816,119800.0,119790.0,1e-08]
[1755027756092,0.5553916,119800.0,119790.0,1e-08]
[1755027756531,0.5573916,119800.0,119790.0,1e-08]
[1755027756716,1.06866086,119800.0,119790.0,1e-08]
[1755027758020,1.06966086,119800.0,119790.0,1e-08]
[1755027758700,1.01955086,119800.0,119790.0,1e-08]
[1755027760316,1.04461786,119800.0,119790.0,1e-08]
[1755027762603,1.06961786,119800.0,119790.0,1e-08]
[1755027765080,0.2069818,119780.0,119770.0,0.0004]
[1755027765290,0.45896527,119780.0,119770.0,0.0004]
[1755027765709,0.01744902,119740.0,119730.0,0.0906804]
[1755027765918,0.01744902,119740.0,119730.0,0.0701204]
[1755027765919,0.90659009,119740.0,119730.0,0.0701204]
[1755027766344,0.90659009,119740.0,119730.0,0.0732804]
[1755027766553,0.90659009,119740.0,119730.0,0.00567]
[1755027766753,0.98907452,119740.0,119730.0,0.00567]
[1755027766957,0.98907452,119740.0,119730.0,0.00571878]
[1755027767169,0.99474452,119740.0,119730.0,0.00771878]
[1755027769115,0.99474452,119740.0,119730.0,0.01071878]
[1755027769324,0.49169949,119740.0,119730.0,0.00871878]
[1755027769538,1.00296875,119740.0,119730.0,0.00871878]
[1755027769761,1.00296875,119740.0,119730.0,0.00971878]
[1755027769762,1.02747434,119740.0,119730.0,0.00971878]
[1755027770239,1.02747434,119740.0,119730.0,0.00871878]
[1755027770661,1.02747434,119740.0,119730.0,0.00571878]
[1755027771755,0.51620508,119740.0,119730.0,0.00571878]
[1755027771963,1.02747434,119740.0,119730.0,0.00571878]
[1755027776308,1.02947434,119740.0,119730.0,0.00255878]
[1755027776733,1.02947434,119740.0,119730.0,0.00571878]
[1755027776734,0.51820508,119740.0,119730.0,0.00571878]
[1755027776914,1.02747434,119740.0,119730.0,0.00571878]
[1755027777543,0.51620508,119740.0,119730.0,0.00571878]
[1755027777743,1.02747434,119740.0,119730.0,0.00571878]
[1755027778989,0.89113011,119740.0,119730.0,0.00571878]
[1755027779206,0.50802085,119740.0,119730.0,0.00571878]
[1755027779866,1.01929011,119740.0,119730.0,0.00571878]
[1755027780079,0.50802085,119740.0,119730.0,0.00571878]
[1755027780303,0.37986085,119740.0,119730.0,0.00571878]
[1755027780530,0.50802085,119740.0,119730.0,0.00671878]
[1755027781215,0.50802085,119740.0,119730.0,0.00871878]
[1755027783288,1.02131011,119740.0,119730.0,0.00871878]
[1755027783509,0.51004085,119740.0,119730.0,0.00555878]
[1755027783729,1.02131011,119740.0,119730.0,0.00555878]
[1755027784412,1.02412011,119740.0,119730.0,0.00344878]
[1755027785346,0.51004085,119740.0,119730.0,0.00344878]
[1755027785591,0.51004085,119740.0,119730.0,0.00044878]
[1755027785824,0.50802085,119740.0,119730.0,0.00555878]
[1755027786313,0.48351526,119740.0,119730.0,0.00555878]
[1755027786574,0.35535526,119740.0,119730.0,0.00555878]
[1755027786846,0.08839325,119740.0,119730.0,0.68595858]
[1755027787053,0.25542181,119740.0,119730.0,0.68387055]
[1755027787267,0.27287083,119740.0,119730.0,0.68487055]
[1755027788151,0.27287083,119740.0,119730.0,0.68687055]
[1755027788373,0.32560095,119740.0,119730.0,0.68687055]
[1755027788836,0.32560095,119740.0,119730.0,0.68987055]
[1755027789308,0.32560095,119740.0,119730.0,0.68887055]
[1755027789773,0.32560095,119740.0,119730.0,0.17960129]
[1755027789990,0.32560095,119740.0,119730.0,0.52382804]
[1755027790215,0.32560095,119740.0,119730.0,0.01255878]
[1755027790451,0.32560095,119740.0,119730.0,0.01464681]
[1755027790690,0.32560095,119740.0,119730.0,0.01255878]
[1755027792485,0.32560095,119740.0,119730.0,0.01464681]
[1755027797826,0.33341475,119740.0,119730.0,0.01255878]
[1755027798331,0.32762095,119740.0,119730.0,0.01255878]
[1755027798537,0.33543729,119740.0,119730.0,0.01255878]
[1755027799229,0.33543729,119740.0,119730.0,0.00944878]
[1755027799435,0.33544058,119740.0,119730.0,0.00944878]
[1755027800231,0.33544058,119740.0,119730.0,0.01255878]
[1755027800937,0.33342058,119740.0,119730.0,0.01255878]
[1755027801685,0.32560095,119740.0,119730.0,0.01255878]
[1755027802362,0.32560095,119740.0,119730.0,0.01134307]
[1755027804496,0.32762095,119740.0,119730.0,0.00823307]
[1755027805294,0.84182021,119740.0,119730.0,0.007]
[1755027805761,0.84964046,119740.0,119730.0,0.007]
[1755027806189,0.84964046,119740.0,119730.0,0.005]
[1755027806403,0.84182021,119740.0,119730.0,0.007]
[1755027806611,0.84182021,119740.0,119730.0,0.002]
[1755027807036,0.16704251,119730.0,119720.0,0.0004]
[1755027807246,0.42970511,119730.0,119720.0,0.0004]
[1755027807675,0.29952511,119730.0,119720.0,0.0075982]
[1755027807881,0.24976576,119730.0,119720.0,0.51886746]
[1755027808089,0.24976576,119730.0,119720.0,0.00551]
[1755027808313,0.24976576,119730.0,119720.0,0.0075982]
[1755027808741,0.27483876,119730.0,119720.0,0.0075982]
[1755027808953,0.33886999,119730.0,119720.0,0.0075982]
[1755027809166,0.33886999,119730.0,119720.0,0.0085982]
[1755027810197,0.33886999,119730.0,119720.0,0.0105982]
[1755027812511,0.33886999,119730.0,119720.0,0.17765466]
[1755027812706,0.33886999,119730.0,119720.0,0.17556646]
[1755027812936,0.33886999,119730.0,119720.0,0.00851]
[1755027813133,0.31379699,119730.0,119720.0,0.0105982]
[1755027814261,0.31586699,119730.0,119720.0,0.00851]
[1755027814421,0.31586699,119730.0,119720.0,0.0054]
[1755027814884,0.31904699,119730.0,119720.0,0.0054]
[1755027815089,0.31586699,119730.0,119720.0,0.0054]
[1755027816480,0.31586699,119730.0,119720.0,0.0034]
[1755027816688,0.31904699,119730.0,119720.0,0.0034]
[1755027817522,0.34411999,119730.0,119720.0,0.0034]
[1755027817940,0.31904699,119730.0,119720.0,0.0034]
[1755027818351,0.31586699,119730.0,119720.0,0.00547]
[1755027819770,0.33331601,119730.0,119720.0,0.00547]
[1755027820228,0.84776527,119730.0,119720.0,0.0034]
[1755027820442,0.33649601,119730.0,119720.0,0.0034]
[1755027820655,0.87283827,119730.0,119720.0,0.0034]
[1755027821063,0.36156901,119730.0,119720.0,0.0034]
[1755027821912,0.87283827,119730.0,119720.0,0.0034]
[1755027823987,0.36156901,119730.0,119720.0,0.0034]
[1755027824394,0.87283827,119730.0,119720.0,0.0034]
[1755027824801,0.36156901,119730.0,119720.0,0.0034]
[1755027825066,0.87283827,119730.0,119720.0,0.0034]
[1755027826877,0.36156901,119730.0,119720.0,0.0034]
[1755027827317,0.87283827,119730.0,119720.0,0.0034]
[1755027829716,1.00099827,119730.0,119720.0,0.0034]
[1755027832299,0.48972901,119730.0,119720.0,0.0034]
[1755027832496,1.00099827,119730.0,119720.0,0.0034]
[1755027840475,0.87283827,119730.0,119720.0,0.0034]
[1755027840687,0.87283827,119730.0,119720.0,0.00852]
[1755027840688,0.48447901,119730.0,119720.0,0.00852]
[1755027840994,0.42044778,119730.0,119720.0,0.00852]
[1755027843285,0.42249778,119730.0,119720.0,0.00852]
[1755027844728,0.29228778,119730.0,119720.0,0.0106082]
[1755027844887,0.29228778,119730.0,119720.0,0.52431746]
[1755027845097,0.29228778,119730.0,119720.0,0.01096]
[1755027845314,0.35632301,119730.0,119720.0,0.0130482]
[1755027847270,0.33125001,119730.0,119720.0,0.18010466]
[1755027847491,0.24852676,119730.0,119720.0,0.17801646]
[1755027847753,0.18449153,119730.0,119720.0,0.68928572]
[1755027848187,0.18449153,119730.0,119720.0,0.17801646]
[1755027849100,0.01744902,119730.0,119720.0,0.17801646]
[1755027849328,0.01744902,119730.0,119720.0,0.68928572]
[1755027851819,0.01744902,119730.0,119720.0,1.38928572]
[1755027862535,0.01744902,119730.0,119720.0,0.87801646]
[1755027862780,0.01744902,119730.0,119720.0,1.38928572]
[1755027863261,0.01759486,119740.0,119730.0,0.16948251]
[1755027863470,0.01759486,119740.0,119730.0,0.81399177]
[1755027864102,0.01759486,119740.0,119730.0,0.30272251]
[1755027864365,0.18462342,119740.0,119730.0,0.81399177]
[1755027865074,0.01759486,119740.0,119730.0,0.81399177]
[1755027865280,0.18562342,119740.0,119730.0,0.81399177]
[1755027865739,0.18562342,119740.0,119730.0,0.30272251]
[1755027866658,0.01759486,119740.0,119730.0,0.30272251]
[1755027868039,0.01759486,119740.0,119730.0,0.30472251]
[1755027868731,0.18462342,119740.0,119730.0,0.30472251]
[1755027869225,0.18462342,119740.0,119730.0,0.81599177]
[1755027869627,0.18462342,119740.0,119730.0,0.30472251]
[1755027869878,0.01759486,119740.0,119730.0,0.81599177]
[1755027872397,0.18462342,119740.0,119730.0,0.81599177]
[1755027872879,0.01759486,119740.0,119730.0,0.81599177]
[1755027873803,0.18462342,119740.0,119730.0,0.81599177]
[1755027874080,0.01759486,119740.0,119730.0,0.81599177]
[1755027874503,0.18462342,119740.0,119730.0,0.30472251]
[1755027874707,0.8709996,119740.0,119730.0,0.00444]
[1755027875766,0.8960696,119740.0,119730.0,0.00444]
[1755027876570,0.31718994,119740.0,119730.0,0.00444]
[1755027877201,0.31718994,119740.0,119730.0,0.00652803]
[1755027878037,0.31718994,119740.0,119730.0,0.00444]
[1755027878252,0.31718994,119740.0,119730.0,0.00652803]
[1755027878487,0.31718994,119740.0,119730.0,0.17357054]
[1755027878693,0.29241667,119740.0,119730.0,0.68802177]
[1755027879002,0.04266486,119740.0,119730.0,0.68802177]
[1755027879164,0.01759486,119740.0,119730.0,0.68802177]
[1755027879371,0.18462342,119740.0,119730.0,0.68802177]
[1755027879576,0.18462342,119740.0,119730.0,0.17675251]
[1755027879761,0.18666342,119740.0,119730.0,0.17675251]
[1755027880031,0.22568735,119740.0,119730.0,0.17675251]
[1755027880176,0.22568735,119740.0,119730.0,0.17362251]
[1755027885667,0.22568735,119740.0,119730.0,0.17675251]
[1755027886907,0.01759486,119740.0,119730.0,0.68802177]
[1755027898650,0.01759486,119740.0,119730.0,0.75190375]
[1755027900446,0.18462342,119740.0,119730.0,0.17675251]
[1755027900663,0.18660342,119740.0,119730.0,0.75190375]
[1755027900931,0.18660342,119740.0,119730.0,0.74877375]
[1755027901353,0.80059247,119740.0,119730.0,0.29712251]
[1755027901564,0.80059247,119740.0,119730.0,0.13252]
[1755027901773,0.80059247,119740.0,119730.0,0.13008]
[1755027901991,0.22544123,119740.0,119730.0,0.13252]
[1755027902212,0.22544123,119740.0,119730.0,0.29956251]
[1755027902630,0.22544123,119740.0,119730.0,0.87471375]
[1755027902843,0.18976342,119740.0,119730.0,0.87471375]
[1755027906353,0.02273486,119740.0,119730.0,0.87471375]
[1755027906565,0.01957486,119740.0,119730.0,0.87471375]
[1755027906780,0.01957486,119740.0,119730.0,0.87682375]
[1755027906982,0.18660342,119740.0,119730.0,0.87682375]
[1755027907610,0.24395256,119740.0,119730.0,0.87682375]
[1755027907816,0.01957486,119740.0,119730.0,0.87682375]
[1755027908244,0.01759486,119740.0,119730.0,1.45521499]
[1755027910932,0.00014584,119740.0,119730.0,0.30491251]
[1755027911155,0.00014584,119740.0,119730.0,1.60521499]
[1755027912427,0.00014584,119740.0,119730.0,1.60321499]
[1755027912847,0.00014584,119740.0,119730.0,0.9720276]
[1755027913936,0.00014584,119740.0,119730.0,1.6720276]
[1755027914905,0.00014584,119740.0,119730.0,0.46091251]
[1755027915111,0.00014584,119740.0,119730.0,0.9720276]
[1755027917221,0.00014584,119740.0,119730.0,0.8219876]
[1755027917454,0.18976342,119740.0,119730.0,0.30552251]
[1755027917909,0.80591171,119740.0,119730.0,0.83848]
[1755027918139,0.29479662,119740.0,119730.0,0.83548]
[1755027918342,0.29479662,119740.0,119730.0,1.00252251]
[1755027918495,0.29479662,119740.0,119730.0,0.83548]
[1755027918917,0.29479662,119740.0,119730.0,0.83048]
[1755027919354,0.29479662,119740.0,119730.0,0.70744]
[1755027919576,0.29479662,119740.0,119730.0,0.83548]
[1755027919865,0.29479662,119740.0,119730.0,0.83348]
[1755027920038,0.29479662,119740.0,119730.0,0.83548]
[1755027920293,0.22718622,119740.0,119730.0,0.83548]
[1755027920505,0.22718622,119740.0,119730.0,0.83648]
[1755027922335,0.22718622,119740.0,119730.0,0.70844]
[1755027922536,0.82102456,119740.0,119730.0,0.2951965]
[1755027922738,0.40219987,119740.0,119730.0,0.006]
[1755027922984,0.93838796,119740.0,119730.0,0.006]
[1755027923387,0.93838796,119740.0,119730.0,0.005]
[1755027923834,0.93838796,119740.0,119720.0,0.0004]
[1755027923835,0.18449153,119730.0,119720.0,0.0004]
[1755027924142,0.9939543,119730.0,119720.0,0.0004]
[1755027924349,0.8659543,119730.0,119720.0,0.0004]
[1755027925500,0.8669543,119730.0,119720.0,0.0004]
[1755027926453,0.8679543,119730.0,119720.0,0.0004]
[1755027929299,0.87650552,119730.0,119720.0,0.0004]
[1755027931378,0.90158252,119730.0,119720.0,0.0004]
[1755027934521,0.39046743,119730.0,119720.0,0.0004]
[1755027934720,0.90158252,119730.0,119720.0,0.0004]
[1755027940945,0.39046743,119730.0,119720.0,0.0004]
[1755027941088,0.90158252,119730.0,119720.0,0.0004]
[1755027942303,0.38730743,119730.0,119720.0,0.00244]
[1755027942508,0.38730743,119730.0,119720.0,0.00554]
[1755027942929,0.38730743,119730.0,119720.0,0.00244]
[1755027943153,0.89842252,119730.0,119720.0,0.0004]
[1755027943329,0.90139252,119730.0,119720.0,0.0004]
[1755027945402,0.39027743,119730.0,119720.0,0.0004]
[1755027945767,0.38730743,119730.0,119720.0,0.00244]
[1755027945964,0.89842252,119730.0,119720.0,0.00244]
[1755027946086,0.38730743,119730.0,119720.0,0.00244]
[1755027946294,0.89842252,119730.0,119720.0,0.00244]
[1755027946740,0.89842252,119730.0,119720.0,0.0004]
[1755027947010,0.90139252,119730.0,119720.0,0.0004]
[1755027949264,0.8928413,119730.0,119720.0,0.0004]
[1755027949481,0.8898713,119730.0,119720.0,0.00244]
[1755027950286,0.90127174,119730.0,119720.0,0.0004]
[1755027950495,1.02927174,119730.0,119720.0,0.0004]
[1755027953580,1.0208413,119730.0,119720.0,0.0004]
[1755027956811,1.02903068,119730.0,119720.0,0.0004]
[1755027957586,1.54014577,119730.0,119720.0,0.0004]
[1755027957774,1.02903068,119730.0,119720.0,0.0004]
[1755027960376,1.02606068,119730.0,119720.0,0.00243]
[1755027960788,0.51494559,119730.0,119720.0,0.00559]
[1755027961637,0.50675621,119730.0,119720.0,0.00559]
[1755027961831,0.50477621,119730.0,119720.0,0.00559]
[1755027962655,0.50688621,119730.0,119720.0,0.00559]
[1755027963465,1.0180013,119730.0,119720.0,0.00559]
[1755027964557,0.8900013,119730.0,119720.0,0.00559]
[1755027964746,1.0179613,119730.0,119720.0,0.00559]
[1755027964960,0.50473621,119730.0,119720.0,0.00559]
[1755027965163,0.37677621,119730.0,119720.0,0.00803]
[1755027965389,0.29429178,119730.0,119720.0,0.00803]
[1755027966251,0.027077,119730.0,119720.0,0.68828975]
[1755027966462,0.16904251,119730.0,119720.0,0.68620155]
[1755027966647,0.2366515,119730.0,119720.0,0.68620155]
[1755027967290,0.2366515,119730.0,119720.0,0.81416155]
[1755027967508,0.2366515,119730.0,119720.0,0.30304646]
[1755027967958,0.01744902,119730.0,119720.0,0.81416155]
[1755027968196,0.01744902,119730.0,119720.0,0.81516155]
[1755027968423,0.01744902,119730.0,119720.0,0.82356126]
[1755027971903,0.00014584,119740.0,119730.0,0.16200251]
[1755027972126,0.01759486,119740.0,119730.0,0.68248366]
[1755027972353,0.01759486,119740.0,119730.0,0.6783076]
[1755027973130,0.01859486,119740.0,119730.0,0.6783076]
[1755027974202,0.01959486,119740.0,119730.0,0.6783076]
[1755027975010,0.01759486,119740.0,119730.0,0.6783076]
[1755027975418,0.01759486,119740.0,119730.0,0.6813076]
[1755027976159,0.01759486,119740.0,119730.0,0.17019251]
[1755027976358,0.01759486,119740.0,119730.0,0.6813076]
[1755027983310,0.01759486,119740.0,119730.0,0.17019251]
[1755027983551,0.01759486,119740.0,119730.0,0.6813076]
[1755027986179,0.00014584,119740.0,119730.0,0.6813076]
[1755027988309,0.00014584,119740.0,119730.0,0.17019251]
[1755027988496,0.00014584,119740.0,119730.0,0.6813076]
[1755027988820,0.00014584,119740.0,119730.0,0.76403085]
[1755027989033,0.00014584,119740.0,119730.0,0.91403085]
[1755027989894,0.00014584,119740.0,119730.0,0.91303085]
[1755027990307,0.00014584,119740.0,119730.0,0.91403085]
[1755027990514,0.00014584,119740.0,119730.0,0.92003085]
[1755027990926,0.00014584,119740.0,119730.0,0.91403085]
[1755027991142,0.00014584,119740.0,119730.0,0.92003085]
[1755027991782,0.00014584,119740.0,119730.0,0.91703085]
[1755027991949,0.00014584,119740.0,119730.0,0.92103085]
[1755027997011,0.00014584,119740.0,119730.0,0.94609385]
[1755028001428,0.00014584,119740.0,119730.0,1.07461385]
[1755028008367,0.00513584,119740.0,119730.0,1.06698385]
[1755028008548,0.00513584,119740.0,119730.0,1.06942385]
[1755028009495,0.00513584,119740.0,119730.0,1.05942385]